Workbook

Sheet NSU
B1: Emma Ahola | E1: 6.7.1990 Hämeenkyrö
B2: SUPERPESIS | E2: Runkosarja | I2: Kärkilyönnit (KL), pesänvälit | P2: Ylempi loppusarja | U2: Alempi loppusarja | AB2: Arvo-ottelut ja mitalit
B3: Vuosi | C3: Sija | D3: Seura | E3: OTT | F3: KUN | G3: LÖI | H3: TOI | I3: KL | J3: 0 > 1 | K3: 1 > 2 | L3: 2 > 3 | M3: 3 > k | N3: KL-% | P3: OTT | Q3: KUN | R3: LÖI | S3: TOI | T3: KL | U3: OTT | V3: KUN | W3: LÖI | X3: TOI | Y3: KL | Z3: IL | AA3: LL | AB3: Halli | AC3: K | AD3: H | AE3: P
B4: 2006 | C4: 1. | D4: Räpsä | F4: suomensarja
B5: 2007 | C5: 7. | D5: Räpsä | F5: ykköspesis
B6: 2008 | C6: 2. | D6: Räpsä | F6: ykköspesis
B7: 2009 | C7: 9. | D7: Turku-Pesis | E7: 10 | F7: 0 | G7: 0 | H7: 0 | I7: 16 | J7: 9 | K7: 3 | L7: 4 | M7: 0 | N7: 30.8 %
B8: 2010 | C8: 6. | D8: Räpsä | F8: ykköspesis
B9: 2010 | C9: 5. | D9: Tahko | F9: ykköspesis
B10: 2011 | C10: 2. | D10: Räpsä | F10: ykköspesis
B11: 2012 | C11: 4. | D11: Pirkat | F11: suomensarja
B12: 2012 | C12: 3. | D12: Räpsä | F12: ykköspesis
B13: 2013
B14: 2014
B15: 2015
B16: 2016 | C16: 6. | D16: Räpsä | F16: suomensarja
B17: Yhteensä | E17: =SUM(E7:E7) -> 10 | F17: 0 | G17: 0 | H17: 0 | I17: 16 | J17: 9 | K17: 3 | L17: 4 | M17: 0 | N17: 30.8 % | O17: =SUM(O7:O7) -> 0 | P17: 0 | Q17: 0 | R17: 0 | S17: 0 | T17: 0 | U17: 0 | V17: 0 | W17: 0 | X17: 0 | Y17: 0 | Z17: 0 | AA17: 0 | AB17: 0 | AC17: 0 | AD17: 0 | AE17: 0
B18: Pesispörssi | D18: =SUM(F17:H17)+((I17-F17-G17)/3)+(E17/3)+(Z17*25)+(AA17*25)+(AB17*10)+(AC17*25)+(AD17*20)+(AE17*15) -> 8.7
B20: URA SUPERISSA | E20: OTT | F20: KUN | G20: LÖI | H20: TOI | I20: KL | K20: ka/L | L20: ka/T | M20: ka/KL | N20: K - % | P20: ENSIMMÄISET
B21: Runkosarja | E21: =PRODUCT(E17) -> 10 | F21: =PRODUCT(F17) -> 0 | G21: =PRODUCT(G17) -> 0 | H21: =PRODUCT(H17) -> 0 | I21: =PRODUCT(I17) -> 16 | K21: =PRODUCT((F21+G21)/E21) -> 0.00 | L21: =PRODUCT(H21/E21) -> 0.00 | M21: =PRODUCT(I21/E21) -> 1.60 | N21: =PRODUCT(N17) -> 30.8 % | O21: =PRODUCT(O17) -> 0 | P21: Ottelu | R21: 13.05. 2009 Turku-Pesis - Fera 0-2 (0-4, 2-6) | AA21: 1. ottelu | AC21: 18 v 10 kk 7 pv
B22: Ylempi loppusarja | P22: Lyöty
B23: Alempi loppusarja | P23: Tuotu
B24: KAIKKI | E24: =SUM(E21:E23) -> 10 | F24: =SUM(F21:F23) -> 0 | G24: =SUM(G21:G23) -> 0 | H24: =SUM(H21:H23) -> 0 | I24: =SUM(I21:I23) -> 16 | K24: =PRODUCT((F24+G24)/E24) -> 0.00 | L24: =PRODUCT(H24/E24) -> 0.00 | M24: =PRODUCT(I24/E24) -> 1.60 | N24: 30.8 % | O24: =SUM(O21:O23) -> 0 | P24: Kunnari
B26: Seurat | D26: Räpsä = Hämeenkyrön Räpsä (1981), kasvattajaseura
D27: Turku-Pesis = Turku-Pesis (ent. Lännen Pallo) (1949)
D28: Tahko = Hyvinkään Tahko (1915)
D29: Pirkat = Ruoveden Pirkat (1940)

Sheet NYP,NSS
B1: Emma Ahola | E1: 6.7.1990 Hämeenkyrö
B2: YKKÖSPESIS | E2: Runkosarja | L2: Runkosarja TOP-10 | Q2: Jatkosarjat | X2: SUOMENSARJA | AA2: Runkosarja | AH2: Runkosarja TOP-10 | AM2: Jatkosarjat
B3: Vuosi | C3: Sija | D3: Seura | E3: OTT | F3: KUN | G3: LÖI | H3: TOI | I3: KL | J3: KL-% | L3: LÖI | M3: TOI | N3: L+T | O3: KL | Q3: OTT | R3: KUN | S3: LÖI | T3: TOI | U3: KL | V3: KL-% | X3: Vuosi | Y3: Sija | Z3: Seura | AA3: OTT | AB3: KUN | AC3: LÖI | AD3: TOI | AE3: KL | AF3: KL-% | AH3: LÖI | AI3: TOI | AJ3: L+T | AK3: KL | AM3: OTT | AN3: KUN | AO3: LÖI | AP3: TOI | AQ3: KL | AR3: KL-%
X4: 2006 | Z4: Räpsä | AA4: 6 | AB4: 0 | AC4: 5 | AD4: 2 | AE4: 11 | AF4: 37% | AG4: 30 | AM4: 6 | AN4: 0 | AO4: 0 | AP4: 0 | AQ4: 10 | AR4: 37.0 % | AS4: 27
B5: 2007 | C5: 7. | D5: Räpsä | E5: 13 | F5: 0 | G5: 6 | H5: 6 | I5: 31 | J5: 44.3 % | K5: 70
B6: 2008 | C6: 2. | D6: Räpsä | E6: 13 | F6: 0 | G6: 25 | H6: 18 | I6: 60 | J6: 63.2 % | K6: 95 | L6: 6. | N6: 8. | Q6: 8 | R6: 0 | S6: 8 | T6: 2 | U6: 35 | V6: 63.6 % | W6: 55
B7: 2009 | C7: 4. | D7: Turku-Pesis | E7: 2 | F7: 0 | G7: 1 | H7: 1 | I7: 7 | J7: 46.7 % | K7: 15
B8: 2010 | C8: 5. | D8: Tahko | E8: 10 | F8: 0 | G8: 14 | H8: 9 | I8: 47 | J8: 72.3 % | K8: 65
B9: 2010 | C9: 6. | D9: Räpsä | E9: 5 | F9: 1 | G9: 8 | H9: 7 | I9: 32 | J9: 64.0 % | K9: 50
B10: 2011 | C10: 2. | D10: Räpsä | E10: 14 | F10: 5 | G10: 25 | H10: 17 | I10: 91 | J10: 69.5 % | K10: 131 | L10: 3. | N10: 3. | O10: 2. | Q10: 6 | R10: 2 | S10: 12 | T10: 12 | U10: 39 | V10: 84.8 % | W10: 46
B11: 2012 | C11: 3. | D11: Räpsä | E11: 11 | F11: 3 | G11: 22 | H11: 14 | I11: 58 | J11: 67.4 % | K11: 86 | L11: 9. | N11: 10. | Q11: 2 | R11: 0 | S11: 0 | T11: 0 | U11: 5 | V11: 35.7 % | W11: 14 | X11: 2012 | Y11: 4. | Z11: Pirkat | AA11: 1 | AB11: 0 | AC11: 1 | AD11: 0 | AE11: 4 | AF11: 80.0 % | AG11: 5
X13: 2016 | Y13: 6. | Z13: Räpsä | AA13: 13 | AB13: 0 | AC13: 7 | AD13: 3 | AE13: 39 | AF13: 56.5 % | AG13: 69
B14: YHTEENSÄ | E14: =SUM(E4:E13) -> 68 | F14: =SUM(F4:F13) -> 9 | G14: =SUM(G4:G13) -> 101 | H14: =SUM(H4:H13) -> 72 | I14: =SUM(I4:I13) -> 326 | J14: =PRODUCT(I14/K14) -> 63.7 % | K14: =SUM(K4:K13) -> 512 | Q14: =SUM(Q4:Q13) -> 16 | R14: =SUM(R4:R13) -> 2 | S14: =SUM(S4:S13) -> 20 | T14: =SUM(T4:T13) -> 14 | U14: =SUM(U4:U13) -> 79 | V14: =PRODUCT(U14/W14) -> 68.7 % | W14: =SUM(W4:W13) -> 115 | X14: YHTEENSÄ | AA14: =SUM(AA4:AA13) -> 20 | AB14: =SUM(AB4:AB13) -> 0 | AC14: =SUM(AC4:AC13) -> 13 | AD14: =SUM(AD4:AD13) -> 5 | AE14: =SUM(AE4:AE13) -> 54 | AF14: =PRODUCT(AE14/AG14) -> 51.9 % | AG14: =SUM(AG4:AG13) -> 104 | AM14: =SUM(AM4:AM13) -> 6 | AN14: =SUM(AN4:AN13) -> 0 | AO14: =SUM(AO4:AO13) -> 0 | AP14: =SUM(AP4:AP13) -> 0 | AQ14: =SUM(AQ4:AQ13) -> 10 | AR14: =PRODUCT(AQ14/AS14) -> 37.0 % | AS14: =SUM(AS4:AS13) -> 27
B16: KAIKKI OTTELUT | E16: OTT | F16: KUN | G16: LÖI | H16: TOI | I16: KL | J16: KL-% | L16: ka/L | M16: ka/T | N16: ka/l+t | O16: ka/kl | R16: Seurat | T16: Räpsä = Hämeenkyrön Räpsä (1981), kasvattajaseura
B17: SUPERPESIS | E17: 10 | F17: 0 | G17: 0 | H17: 0 | I17: 16 | J17: 30.8 % | K17: =PRODUCT(I17/J17) -> 51.94805195 | L17: =PRODUCT((F17+G17)/E17) -> 0.00 | M17: =PRODUCT(H17/E17) -> 0.00 | N17: =PRODUCT((F17+G17+H17)/E17) -> 0.00 | O17: =PRODUCT(I17/E17) -> 1.60 | T17: Turku-Pesis = Turku-Pesis (ent. Lännen Pallo) (1949)
B18: YKKÖSPESIS | E18: =PRODUCT(E14+Q14) -> 84 | F18: =PRODUCT(F14+R14) -> 11 | G18: =PRODUCT(G14+S14) -> 121 | H18: =PRODUCT(H14+T14) -> 86 | I18: =PRODUCT(I14+U14) -> 405 | J18: =PRODUCT(I18/K18) -> 64.6 % | K18: =PRODUCT(K14+W14) -> 627 | L18: =PRODUCT((F18+G18)/E18) -> 1.57 | M18: =PRODUCT(H18/E18) -> 1.02 | N18: =PRODUCT((F18+G18+H18)/E18) -> 2.60 | O18: =PRODUCT(I18/E18) -> 4.82 | T18: Tahko = Hyvinkään Tahko (1915)
B19: SUOMENSARJA | E19: =PRODUCT(AA14+AM14) -> 26 | F19: =PRODUCT(AB14+AN14) -> 0 | G19: =PRODUCT(AC14+AO14) -> 13 | H19: =PRODUCT(AD14+AP14) -> 5 | I19: =PRODUCT(AE14+AQ14) -> 64 | J19: 0.0 % | K19: =PRODUCT(AG14+AS14) -> 131 | L19: 0.00 | M19: 0.00 | N19: 0.00 | O19: 0.00 | T19: Pirkat = Ruoveden Pirkat (1940)
B20: YHTEENSÄ | E20: =SUM(E17:E19) -> 120 | F20: =SUM(F17:F19) -> 11 | G20: 134 | H20: 91 | I20: 485 | J20: =PRODUCT(I20/K20) -> 59.9 % | K20: =SUM(K17:K19) -> 809.9480519 | L20: =PRODUCT((F20+G20)/E20) -> 1.21 | M20: =PRODUCT(H20/E20) -> 0.76 | N20: =PRODUCT((F20+G20+H20)/E20) -> 1.97 | O20: =PRODUCT(I20/E20) -> 4.04
